[Event "WTCC-65 2018"]
[Site "Radebeul"]
[Date "2018.07.09"]
[Round "3"]
[White "Shushpanov, Vladimir"]
[Black "Mueller Clostermann, Bruno"]
[Result "1-0"]
[ECO "B02"]
[WhiteElo "2198"]
[BlackElo "2114"]
[Annotator "NA"]
[PlyCount "120"]
[EventDate "2018.07.07"]
[EventType "team-tourn"]
[EventCountry "GER"]
[SourceTitle "playchess.com"]
[Source "ChessBase"]
[SourceQuality "1"]
[TimeControl "40/5400+30:1800+30"]

1. e4 {[%emt 0:00:00]} Nf6 {[%emt 0:00:00]} 2. d3 {[%emt 0:00:00]} e5 {[%emt 0:00:47]} 3. f4 {[%emt 0:00:05]} exf4 {[%emt 0:00:25]} 4. Bxf4 {[%emt 0:00:05]} Nc6 {[%emt 0:00:21]} 5. Nf3 {[%emt 0:02:12]} d5 {[%emt 0:09:19]} 6. e5 {[%emt 0:00:38]} Nh5 {[%emt 0:00:56]} 7. Qd2 {[%emt 0:05:28]} Nxf4 {[%emt 0:05:19]} 8. Qxf4 {[%emt 0:00:05]} Be7 {[%emt 0:00:23]} 9. d4 {[%emt 0:01:15]} g5 {[%emt 0:03:35]} 10. Qe3 {[%emt 0:05:15]} g4 {[%emt 0:01:10]} 11. Nfd2 {[%emt 0:05:49]} Bf5 {[%emt 0:06:48]} 12. Bb5 {[%emt 0:03:03]} O-O {[%emt 0:18:29]} 13. O-O {[%emt 0:04:53]} Bg5 {[%emt 0:02:59]} 14. Qc3 {[%emt 0:02:14]} Ne7 {[%emt 0:03:46]} 15. Nb3 {[%emt 0:06:43]} f6 {[%emt 0:07:10]} 16. N1d2 {[%emt 0:06:09]} c6 {[%emt 0:10:15]} 17. Bd3 {[%emt 0:06:14]} fxe5 {[%emt 0:01:18]} 18. dxe5 {[%emt 0:02:33]} Qb6+ {[%emt 0:00:28]} 19. Kh1 {[%emt 0:00:06]} Bxd3 {[%emt 0:04:16]} 20. cxd3 {[%emt 0:03:44]} Nf5 {[%emt 0:04:07]} 21. d4 Ne3 {[%emt 0:08:28]} 22. Rfe1 {[%emt 0:04:45]} Nf5 {[%emt 0:06:23]} 23. Nc5 {[%emt 0:04:41]} Rfe8 {[%emt 0:01:49]} 24. Qd3 {[%emt 0:03:04]} Ng7 {[%emt 0:00:24]} 25. Ndb3 {[%emt 0:01:20]} Re7 {[%emt 0:01:01]} 26. Rf1 {[%emt 0:00:30]} a5 {[%emt 0:00:21]} 27. Qg3 {[%emt 0:01:34]} h5 {[%emt 0:00:50]} 28. h4 {[%emt 0:00:30]} a4 {[%emt 0:00:02]} 29. hxg5 {[%emt 0:02:50]} axb3 30. axb3 {[%emt 0:00:03]} Rxa1 {[%emt 0:02:21]} 31. Rxa1 {[%emt 0:01:09]} Qd8 {[%emt 0:00:46]} 32. Rf1 {[%emt 0:01:03]} b6 {[%emt 0:00:29]} 33. Nd3 {[%emt 0:00:56]} Ne6 {[%emt 0:00:38]} 34. Rf6 {[%emt 0:03:30]} Qe8 {[%emt 0:00:22]} 35. Qe3 {[%emt 0:05:11]} Rg7 {[%emt 0:00:43]} 36. Nb4 {[%emt 0:00:12]} Nxg5 {[%emt 0:00:28]} 37. Nxc6 {[%emt 0:03:37]} Ne4 {[%emt 0:00:49]} 38. Rh6 {[%emt 0:02:28]} Qf8 {[%emt 0:00:20]} 39. Kg1 g3 40. e6 {[%emt 0:02:55]} Qe8 {[%emt 0:01:24]} 41. e7 {[%emt 0:31:28]} Rg6 {[%emt 0:16:19]} 42. Qf4 {[%emt 0:00:00]} Rxh6 {[%emt 0:02:15]} 43. Qxh6 {[%emt 0:00:00]} Qf7 {[%emt 0:00:37]} 44. Qe3 {[%emt 0:00:00]} Qf2+ {[%emt 0:04:17]} 45. Qxf2 {[%emt 0:00:00]} gxf2+ {[%emt 0:00:04]} 46. Kf1 {[%emt 0:00:00]} Kf7 {[%emt 0:00:16]} 47. Nb4 {[%emt 0:00:00]} Kxe7 {[%emt 0:01:27]} 48. Nxd5+ {[%emt 0:00:00]} Ke6 {[%emt 0:02:24]} 49. Nc3 {[%emt 0:00:00]} Nd2+ {[%emt 0:00:26]} 50. Kxf2 {[%emt 0:00:00]} Nxb3 {[%emt 0:00:14]} 51. Ke3 {[%emt 0:00:00]} Na5 {[%emt 0:00:25]} 52. Kf4 {[%emt 0:00:00]} Nc4 {[%emt 0:01:10]} 53. b4 {[%emt 0:00:00]} Kf6 {[%emt 0:00:39]} 54. Nd5+ {[%emt 0:00:00]} Kg6 {[%emt 0:01:09]} 55. Ne3 {[%emt 0:00:00]} Nd6 {[%emt 0:00:26]} 56. Ke5 {[%emt 0:00:00]} Nf7+ {[%emt 0:00:31]} 57. Ke6 {[%emt 0:00:00]} Ng5+ {[%emt 0:00:59]} 58. Ke7 {[%emt 0:00:00]} h4 {[%emt 0:02:26]} 59. d5 {[%emt 0:00:00]} Nf7 {[%emt 0:00:19]} 60. d6 {[%emt 0:00:00]} Ne5 {[%emt 0:00:16] Kf6+ Kxf6} 1-0

[Event "WTCC-65 2018"]
[Site "Radebeul"]
[Date "2018.07.09"]
[Round "3"]
[White "Ulrichsen, Jarl Henning"]
[Black "Berry, Stephen H"]
[Result "1/2-1/2"]
[ECO "A21"]
[WhiteElo "2196"]
[BlackElo "2298"]
[Annotator "NA"]
[PlyCount "49"]
[EventDate "2018.07.07"]
[EventType "team-tourn"]
[EventCountry "GER"]
[SourceTitle "playchess.com"]
[Source "ChessBase"]
[SourceQuality "1"]
[TimeControl "40/5400+30:1800+30"]

1. c4 {[%emt 0:00:00]} e5 {[%emt 0:00:16]} 2. Nc3 {[%emt 0:00:54]} d6 {[%emt 0:00:11]} 3. e3 {[%emt 0:03:39]} f5 {[%emt 0:02:54]} 4. d3 {[%emt 0:02:14]} Nf6 {[%emt 0:00:20]} 5. g3 {[%emt 0:01:15]} Be7 {[%emt 0:00:14]} 6. Bg2 {[%emt 0:00:16]} O-O {[%emt 0:00:14]} 7. Nge2 {[%emt 0:00:48]} c6 {[%emt 0:01:43]} 8. O-O {[%emt 0:04:49] LiveBook: 48 Partien} Be6 {[%emt 0:01:20]} 9. b3 {[%emt 0:01:34]} Nbd7 {[%emt 0:02:55] A21: English Opening: 1...e5 2 Nc3} 10. d4 {[%emt 0:06:51]} (10. f4 Ng4 11. h3 Ngf6 12. fxe5 Nxe5 13. d4 Nf7 14. d5 Bd7 15. Nd4 Qc8 16. dxc6 bxc6 17. Qc2 {0-1 (39) Sivuk,V (2566)-Deepan Chakkravarthy,J (2478) Chennai 2016}) 10... Bf7 {[%emt 0:15:12]} 11. dxe5 $146 {[%emt 0:09:07]} ({Predecessor:} 11. d5 Qc7 12. Bb2 Nc5 13. dxc6 bxc6 14. Qc2 Bg6 15. f4 Rab8 16. Rad1 Ng4 17. Bc1 {½-½ (34) Van Deursen,P (2027)-Lovholt,T (1949) Chessfriend.com 2005}) 11... dxe5 {[%emt 0:00:48]} 12. e4 {[%emt 0:00:34]} fxe4 {[%emt 0:04:01]} 13. Nxe4 {[%emt 0:21:00]} Nxe4 {[%emt 0:00:55]} 14. Bxe4 {[%emt 0:00:06]} Nc5 {[%emt 0:01:07]} 15. Qxd8 {[%emt 0:07:31]} Raxd8 {[%emt 0:00:11]} 16. Nc3 {[%emt 0:12:46]} Nxe4 {[%emt 0:05:40]} 17. Nxe4 {[%emt 0:00:11]} Bg6 {[%emt 0:06:57]} 18. Bg5 {[%emt 0:04:51]} Bxg5 {[%emt 0:04:48]} 19. Nxg5 {[%emt 0:00:06]} Rd2 $15 {[%emt 0:02:06]} 20. f4 {[%emt 0:06:26]} exf4 {[%emt 0:04:25]} 21. Ne6 {[%emt 0:05:25]} Be4 {[%emt 0:11:07]} 22. Nxf4 {[%emt 0:00:11]} g5 {[%emt 0:12:39]} 23. Rae1 {[%emt 0:02:46]} Rxf4 {[%emt 0:01:28]} 24. gxf4 {[%emt 0:03:17]} Rg2+ {[%emt 0:00:08]} 25. Kh1 1/2-1/2

[Event "WTCC-65 2018"]
[Site "Radebeul"]
[Date "2018.07.09"]
[Round "3"]
[White "Rosen, Willy"]
[Black "Faibisovich, Vadim Z"]
[Result "1/2-1/2"]
[ECO "B23"]
[WhiteElo "2161"]
[BlackElo "2312"]
[Annotator "NA"]
[PlyCount "82"]
[EventDate "2018.07.07"]
[EventType "team-tourn"]
[EventCountry "GER"]
[SourceTitle "playchess.com"]
[Source "ChessBase"]
[SourceQuality "1"]
[TimeControl "40/5400+30:1800+30"]

1. e4 {[%emt 0:00:05]} c5 {[%emt 0:00:00]} 2. Nc3 {[%emt 0:00:09]} Nc6 {[%emt 0:00:41]} 3. f4 {[%emt 0:00:07]} g6 {[%emt 0:04:23]} 4. Nf3 {[%emt 0:00:00]} Bg7 {[%emt 0:00:18]} 5. Bb5 {[%emt 0:00:01]} Nd4 6. O-O {[%emt 0:00:07]} Nxb5 {[%emt 0:08:55]} 7. Nxb5 d6 8. d3 {[%emt 0:01:02]} Nf6 {[%emt 0:03:33]} 9. Nc3 {[%emt 0:00:42]} O-O {[%emt 0:07:11] B23: Closed Sicilian: Lines without g3} 10. Qe1 {[%emt 0:00:56]} e6 {[%emt 0:09:55]} (10... Ne8) 11. Qh4 {[%emt 0:06:16]} Nh5 {[%emt 0:07:55]} 12. g4 {[%emt 0:09:56]} Qxh4 {[%emt 0:00:52]} 13. Nxh4 {[%emt 0:00:01]} Nf6 {[%emt 0:05:38]} 14. g5 $146 {[%emt 0:02:15]} ({Predecessor:} 14. h3 Ne8 15. f5 Bf6 16. g5 Bxc3 17. bxc3 exf5 18. exf5 {½-½ (48) Kelly,P (1857)-Bevan,P (1999) Cardiff 2016}) 14... Nh5 {[%emt 0:04:37]} 15. f5 {[%emt 0:06:16]} Be5 {[%emt 0:04:08]} 16. f6 {[%emt 0:01:36]} Bd7 {[%emt 0:04:35]} 17. Ne2 {[%emt 0:06:46]} d5 {[%emt 0:04:21]} 18. Nf3 {[%emt 0:02:11]} Bc7 {[%emt 0:00:30]} 19. e5 {[%emt 0:01:04]} d4 {[%emt 0:02:33]} 20. Ng3 {[%emt 0:06:17]} Nxg3 {[%emt 0:02:57]} 21. hxg3 {[%emt 0:00:15]} Bc6 {[%emt 0:00:10]} 22. Bf4 {[%emt 0:00:33]} Bxf3 {[%emt 0:11:35]} 23. Rxf3 {[%emt 0:00:09]} h5 {[%emt 0:03:17]} 24. gxh6 {[%emt 0:04:40]} Kh7 {[%emt 0:01:11]} 25. Re1 {[%emt 0:01:56]} Rad8 {[%emt 0:00:36]} 26. g4 {[%emt 0:00:22]} g5 {[%emt 0:00:42]} 27. Bg3 $11 {[%emt 0:06:36]} Kg6 {[%emt 0:04:07]} 28. Rf2 {[%emt 0:00:16]} Rh8 {[%emt 0:00:20]} 29. Rh2 {[%emt 0:00:08]} Rxh6 {[%emt 0:03:05]} 30. Rxh6+ {[%emt 0:00:15]} Kxh6 {[%emt 0:00:07]} 31. Kf2 {[%emt 0:00:10]} Kg6 {[%emt 0:00:14]} 32. Kf3 {[%emt 0:01:01]} Rh8 {[%emt 0:00:29]} 33. Ke4 {[%emt 0:10:37]} Rh3 {[%emt 0:00:20]} 34. Rg1 {[%emt 0:00:09]} Ba5 {[%emt 0:01:19]} 35. Kf3 {[%emt 0:03:57]} Bd2 {[%emt 0:01:09]} 36. Kg2 {[%emt 0:00:17]} Rh8 {[%emt 0:00:59]} 37. Rh1 {[%emt 0:00:52]} Rxh1 {[%emt 0:00:37]} 38. Kxh1 {[%emt 0:00:01]} Bc1 {[%emt 0:01:00]} 39. b3 {[%emt 0:00:09]} b5 {[%emt 0:03:20]} 40. Kg2 {[%emt 0:03:54]} b4 {[%emt 0:00:43]} 41. Kf3 {[%emt 0:30:33]} Kh7 {[%emt 0:30:34]} 1/2-1/2

[Event "WTCC-65 2018"]
[Site "Radebeul"]
[Date "2018.07.09"]
[Round "3"]
[White "Sprotte, Norbert"]
[Black "Buchal, Stephan"]
[Result "1/2-1/2"]
[ECO "B08"]
[WhiteElo "2143"]
[BlackElo "2329"]
[Annotator "NA"]
[PlyCount "40"]
[EventDate "2018.07.07"]
[EventType "team-tourn"]
[EventCountry "GER"]
[SourceTitle "playchess.com"]
[Source "ChessBase"]
[SourceQuality "1"]
[TimeControl "40/5400+30:1800+30"]

1. d4 {[%emt 0:00:00]} d6 {[%emt 0:00:00]} 2. e4 {[%emt 0:00:03]} g6 {[%emt 0:00:10]} 3. Nc3 {[%emt 0:00:18]} Bg7 {[%emt 0:00:14]} 4. h3 {[%emt 0:00:57]} Nf6 {[%emt 0:01:08]} 5. Nf3 {[%emt 0:00:40]} O-O {[%emt 0:00:14]} 6. Be3 {[%emt 0:01:07]} c6 {[%emt 0:02:15]} 7. a4 {[%emt 0:01:59]} Qc7 {[%emt 0:01:25]} 8. Be2 {[%emt 0:03:17]} e5 {[%emt 0:01:26] LiveBook: 15 Games} 9. dxe5 {[%emt 0:07:07]} dxe5 {[%emt 0:00:16]} 10. O-O {[%emt 0:00:29] B08: Pirc Defence: Classical System} b6 {[%emt 0:08:50]} (10... Nh5 11. Bc4 Nf4 12. Qb1 Qe7 13. Kh2 Qf6 14. Ng1 h5 15. b4 Nd7 16. a5 Re8 17. b5 Bf8 18. a6 Nc5 {0-1 (40) Jurcik,M (2473)-Matlakov,M (2707) Batumi 2018}) 11. Qc1 {[%emt 0:06:17]} Bb7 $146 {[%emt 0:04:10]} ({Predecessor:} 11... Ba6 12. Bxa6 Nxa6 13. Bh6 Nc5 14. Bxg7 Kxg7 15. Qg5 Nfd7 16. Rad1 {½-½ (92) Olsarova,K (2189)-Rakic,M (2270) Gaziantep 2012}) 12. Bh6 {[%emt 0:08:31]} Nbd7 {[%emt 0:01:15]} 13. Bxg7 {[%emt 0:08:37]} Kxg7 {[%emt 0:00:14]} 14. Qe3 {[%emt 0:01:19]} a6 {[%emt 0:12:52]} 15. Nd2 {[%emt 0:06:50]} b5 {[%emt 0:03:09]} 16. Bg4 {[%emt 0:11:50]} Nxg4 {[%emt 0:19:00]} 17. hxg4 {[%emt 0:00:06]} Rad8 {[%emt 0:02:28]} 18. Rfd1 {[%emt 0:05:14]} b4 {[%emt 0:11:34]} 19. Ne2 $14 {[%emt 0:01:03]} a5 {[%emt 0:04:26]} 20. Ng3 {[%emt 0:02:35]} Ba6 {[%emt 0:09:18]} 1/2-1/2

[Event "WTCC-65 2018"]
[Site "Radebeul"]
[Date "2018.07.09"]
[Round "3"]
[White "Hilpert, Rainer"]
[Black "Illi, Hans Joerg"]
[Result "1-0"]
[ECO "E20"]
[WhiteElo "2127"]
[BlackElo "2063"]
[Annotator "NA"]
[PlyCount "57"]
[EventDate "2018.07.07"]
[EventType "team-tourn"]
[EventCountry "GER"]
[SourceTitle "playchess.com"]
[Source "ChessBase"]
[SourceQuality "1"]
[TimeControl "40/5400+30:1800+30"]

1. d4 {[%emt 0:00:00]} Nf6 {[%emt 0:00:21]} 2. c4 {[%emt 0:00:00]} e6 {[%emt 0:01:16]} 3. Nc3 {[%emt 0:00:18]} Bb4 {[%emt 0:00:47]} 4. f3 {[%emt 0:00:52]} d5 {[%emt 0:02:43]} 5. a3 {[%emt 0:00:38]} Bxc3+ {[%emt 0:04:04]} 6. bxc3 {[%emt 0:02:44]} b6 {[%emt 0:04:28]} 7. cxd5 {[%emt 0:02:45]} exd5 {[%emt 0:03:56]} 8. e3 {[%emt 0:00:20]} O-O {[%emt 0:02:15]} 9. Bd3 {[%emt 0:00:29]} Ba6 {[%emt 0:04:18]} 10. Bxa6 {[%emt 0:02:07]} Nxa6 {[%emt 0:00:22]} 11. Ne2 {[%emt 0:00:13]} c5 {[%emt 0:00:44]} 12. O-O {[%emt 0:00:52]} Re8 {[%emt 0:09:38]} 13. Ra2 {[%emt 0:06:53]} Qd7 {[%emt 0:05:36]} 14. Ng3 {[%emt 0:01:43]} Rac8 {[%emt 0:02:42]} 15. Re2 {[%emt 0:03:46]} cxd4 {[%emt 0:14:26]} 16. cxd4 {[%emt 0:02:26]} Rc4 {[%emt 0:01:40]} 17. Bb2 {[%emt 0:02:28]} Qc6 {[%emt 0:07:43]} 18. Rfe1 {[%emt 0:05:41]} Nc7 {[%emt 0:00:32]} 19. e4 {[%emt 0:06:08]} g6 {[%emt 0:12:51]} 20. e5 {[%emt 0:12:52]} Nd7 {[%emt 0:00:38]} 21. f4 {[%emt 0:05:11]} Ne6 {[%emt 0:05:00]} 22. f5 {[%emt 0:02:22]} Ng7 {[%emt 0:02:07]} 23. Rf2 {[%emt 0:10:56]} Qa4 {[%emt 0:03:51]} 24. Qf3 {[%emt 0:06:11]} Qc6 {[%emt 0:02:48]} 25. Ref1 {[%emt 0:02:32]} Rf8 {[%emt 0:02:17]} 26. h4 {[%emt 0:04:46]} h5 {[%emt 0:03:20]} 27. Qd3 {[%emt 0:00:39]} gxf5 {[%emt 0:01:19]} 28. Nxf5 {[%emt 0:00:39]} Qe6 29. Qg3 1-0

[Event "WTCC-65 2018"]
[Site "Radebeul"]
[Date "2018.07.09"]
[Round "3"]
[White "Krueger, Erich"]
[Black "Karasev, Vladimir I"]
[Result "0-1"]
[ECO "A40"]
[WhiteElo "2126"]
[BlackElo "2337"]
[Annotator "NA"]
[PlyCount "98"]
[EventDate "2018.07.07"]
[EventType "team-tourn"]
[EventCountry "GER"]
[SourceTitle "playchess.com"]
[Source "ChessBase"]
[SourceQuality "1"]
[TimeControl "40/5400+30:1800+30"]

1. d4 {[%emt 0:00:00]} g6 {[%emt 0:00:00]} 2. c4 {[%emt 0:00:00]} Bg7 {[%emt 0:00:00]} 3. e4 {[%emt 0:00:00]} Nc6 {[%emt 0:00:58]} 4. Nf3 {[%emt 0:02:08]} d6 {[%emt 0:00:21]} 5. d5 {[%emt 0:01:21] A40: Unusual replies to 1 d4} (5. Be2 Bg4 6. Be3 Bxf3 7. Bxf3 e5 8. d5 Nd4 9. Bxd4 exd4 10. O-O Ne7 11. Nd2 O-O 12. Rb1 c6 13. Be2 f5 14. exf5 Nxf5 15. dxc6 bxc6 16. b4 Kh8 17. Bd3 Rb8 {½-½ (72) Giri,A (2734)-Nepomniachtchi,I (2721) Beijing 2013}) 5... Nb8 {[%emt 0:01:09]} 6. Be2 {[%emt 0:01:26]} c5 {[%emt 0:01:09]} 7. O-O {[%emt 0:02:30]} Bg4 $146 {[%emt 0:01:23]} ({Predecessor:} 7... Nf6 8. Nc3 O-O 9. h3 a6 10. Be3 Nbd7 11. Qd2 Rb8 12. a4 Qa5 13. Bh6 Qb4 14. Bxg7 Kxg7 15. Ne1 Ne5 16. Nc2 Nxc4 17. Qd3 {½-½ (39) Thorsteins,K (2370)-Ivkovic,D Bela Crkva 1983}) 8. h3 {[%emt 0:04:30]} Bxf3 {[%emt 0:00:10]} 9. Bxf3 {[%emt 0:00:05]} Nd7 {[%emt 0:06:12]} 10. Qc2 {[%emt 0:00:57]} Bh6 {[%emt 0:08:20]} 11. Bxh6 {[%emt 0:09:53]} Nxh6 {[%emt 0:00:04]} 12. Qd2 {[%emt 0:00:28]} Ng8 {[%emt 0:00:10]} 13. Nc3 {[%emt 0:00:47]} h6 {[%emt 0:10:47]} 14. Be2 {[%emt 0:02:47]} (14. Bd1 $16) 14... g5 {[%emt 0:00:53]} 15. f4 {[%emt 0:15:15]} gxf4 {[%emt 0:00:21]} 16. Rxf4 {[%emt 0:00:11]} Ne5 {[%emt 0:01:06]} 17. Nd1 {[%emt 0:05:29]} Nf6 {[%emt 0:02:55]} 18. Nf2 {[%emt 0:03:57]} Qb6 {[%emt 0:06:15]} 19. b3 {[%emt 0:02:11]} O-O-O {[%emt 0:01:31]} 20. Bg4+ {[%emt 0:02:51]} Kb8 {[%emt 0:00:42]} 21. Bf5 {[%emt 0:02:16]} Rdg8 {[%emt 0:07:46]} 22. Nd3 {[%emt 0:04:08]} Rg3 {[%emt 0:06:43]} 23. Nxe5 {[%emt 0:02:10]} dxe5 {[%emt 0:00:02]} 24. Rh4 {[%emt 0:03:49]} h5 {[%emt 0:13:24]} 25. Rf1 {[%emt 0:04:59]} Rhg8 {[%emt 0:03:02]} 26. Rf2 {[%emt 0:00:42]} Qd6 {[%emt 0:08:05]} 27. Kh2 {[%emt 0:01:03]} R3g7 {[%emt 0:01:58]} 28. Qe2 {[%emt 0:06:17]} e6 {[%emt 0:02:58]} 29. Bg4 {[%emt 0:04:14]} exd5 {[%emt 0:06:11]} 30. Bxh5 {[%emt 0:00:52]} dxe4 {[%emt 0:00:52]} 31. Rxe4 {[%emt 0:04:08]} Nxe4 {[%emt 0:00:41]} 32. Qxe4 {[%emt 0:00:10]} Qd4 {[%emt 0:02:03]} 33. Qc2 {[%emt 0:04:16]} e4 {[%emt 0:00:46]} 34. Bg4 {[%emt 0:02:06]} e3 {[%emt 0:01:24]} 35. Rf5 {[%emt 0:02:15]} Rxg4 {[%emt 0:01:56]} 36. hxg4 {[%emt 0:00:19]} Qxg4 {[%emt 0:00:24]} 37. Rf3 {[%emt 0:01:02]} Qh4+ {[%emt 0:01:00]} 38. Kg1 {[%emt 0:02:27]} Re8 {[%emt 0:03:14]} 39. Qe2 {[%emt 0:01:43]} Qg4 {[%emt 0:00:38]} 40. Kf1 {[%emt 0:01:53]} f5 {[%emt 0:00:32]} 41. Rh3 {[%emt 0:09:18]} Qe4 {[%emt 0:01:42]} 42. Kg1 {[%emt 0:00:43]} f4 {[%emt 0:00:34]} 43. Kh2 {[%emt 0:03:41]} a6 {[%emt 0:00:19]} 44. Rh5 {[%emt 0:03:48]} Ka7 {[%emt 0:00:51]} 45. Rh3 {[%emt 0:02:34]} Qe5 {[%emt 0:01:18]} 46. Kg1 {[%emt 0:07:03]} Rd8 {[%emt 0:01:22]} 47. Rh7 {[%emt 0:02:45]} Qe4 {[%emt 0:02:26]} 48. Qh5 {[%emt 0:01:40]} e2 {[%emt 0:01:20]} 49. Qxc5+ {[%emt 0:00:27]} Ka8 {[%emt 0:00:14]} 0-1

[Event "WTCC-65 2018"]
[Site "Radebeul"]
[Date "2018.07.09"]
[Round "3"]
[White "Just, Fred"]
[Black "Vucenovic, Dragomir"]
[Result "0-1"]
[ECO "D05"]
[WhiteElo "2116"]
[BlackElo "2186"]
[Annotator "NA"]
[PlyCount "94"]
[EventDate "2018.07.07"]
[EventType "team-tourn"]
[EventCountry "GER"]
[SourceTitle "playchess.com"]
[Source "ChessBase"]
[SourceQuality "1"]
[TimeControl "40/5400+30:1800+30"]

1. d4 {[%emt 0:00:00]} d5 {[%emt 0:00:00]} 2. Nf3 {[%emt 0:00:00]} Nf6 {[%emt 0:00:00]} 3. e3 {[%emt 0:01:26]} e6 {[%emt 0:00:45]} 4. c4 {[%emt 0:00:36]} Nbd7 {[%emt 0:01:07]} 5. Nc3 {[%emt 0:01:22]} Be7 {[%emt 0:01:38]} 6. b3 {[%emt 0:01:05]} O-O {[%emt 0:01:15]} 7. Bd3 {[%emt 0:00:31]} c5 {[%emt 0:02:21]} 8. O-O {[%emt 0:03:09]} b6 {[%emt 0:00:29]} 9. cxd5 {[%emt 0:04:15]} exd5 {[%emt 0:00:52]} 10. Bb2 {[%emt 0:00:56]} Bb7 {[%emt 0:01:00]} 11. Rc1 {[%emt 0:01:37]} Rc8 {[%emt 0:01:58]} 12. Bf5 {[%emt 0:14:58]} g6 {[%emt 0:02:54]} 13. Bh3 {[%emt 0:03:41]} Rb8 {[%emt 0:05:18]} 14. Ne5 {[%emt 0:04:24]} Nxe5 {[%emt 0:01:25]} 15. dxe5 {[%emt 0:00:19]} Ne8 {[%emt 0:00:28]} 16. Ne2 {[%emt 0:02:02]} Ng7 {[%emt 0:02:39]} 17. Qd2 {[%emt 0:02:58]} f5 {[%emt 0:03:17]} 18. exf6 {[%emt 0:02:19]} Bxf6 {[%emt 0:00:07]} 19. Rfd1 {[%emt 0:05:28]} Bxb2 {[%emt 0:08:33]} 20. Qxb2 {[%emt 0:00:13]} Qe7 {[%emt 0:01:17]} 21. Rd2 {[%emt 0:03:36]} Rbd8 {[%emt 0:07:56]} 22. Rcd1 {[%emt 0:00:46]} g5 {[%emt 0:02:16]} 23. Qc3 {[%emt 0:13:13]} h5 {[%emt 0:06:51]} 24. f3 {[%emt 0:04:30]} Rde8 {[%emt 0:29:22]} 25. e4 {[%emt 0:04:35]} d4 {[%emt 0:00:58]} 26. Qc4+ {[%emt 0:01:37]} Qf7 {[%emt 0:03:25]} 27. Qxf7+ {[%emt 0:00:41]} Rxf7 {[%emt 0:00:02]} 28. Ng3 {[%emt 0:00:01]} Bc8 {[%emt 0:01:56]} 29. Bxc8 {[%emt 0:01:48]} Rxc8 {[%emt 0:00:02]} 30. Rc1 {[%emt 0:02:11]} Rfc7 {[%emt 0:00:54]} 31. Ne2 {[%emt 0:01:42]} h4 32. f4 {[%emt 0:02:10]} gxf4 {[%emt 0:04:42]} 33. Nxf4 {[%emt 0:00:08]} Rf7 {[%emt 0:00:49]} 34. Ng6 Re8 {[%emt 0:01:00]} 35. Nxh4 {[%emt 0:06:19]} Rxe4 {[%emt 0:00:19]} 36. Nf3 {[%emt 0:02:53]} Ne6 {[%emt 0:00:53]} 37. h4 {[%emt 0:03:21]} Rg7 {[%emt 0:00:30]} 38. Kf2 {[%emt 0:00:30]} Reg4 {[%emt 0:00:30]} 39. Kf1 {[%emt 0:00:30]} Nf4 {[%emt 0:00:30]} 40. Re1 {[%emt 0:06:37]} Nxg2 {[%emt 0:04:53]} 41. Re8+ {[%emt 0:30:44]} Kf7 {[%emt 0:30:52]} 42. Ne5+ {[%emt 0:00:02]} Kxe8 {[%emt 0:00:30]} 43. Nxg4 {[%emt 0:00:02]} Rxg4 {[%emt 0:00:20]} 44. Rxg2 {[%emt 0:00:15]} Rxg2 {[%emt 0:00:49]} 45. Kxg2 {[%emt 0:00:05]} b5 {[%emt 0:00:06]} 46. Kf3 c4 47. bxc4 {[%emt 0:00:00]} bxc4 {[%emt 0:00:00]} 0-1

[Event "WTCC-65 2018"]
[Site "Radebeul"]
[Date "2018.07.09"]
[Round "3"]
[White "Seibold, Hubert"]
[Black "Gruzmann, Boris"]
[Result "1/2-1/2"]
[ECO "A49"]
[WhiteElo "2113"]
[BlackElo "2176"]
[Annotator "NA"]
[PlyCount "95"]
[EventDate "2018.07.07"]
[EventType "team-tourn"]
[EventCountry "GER"]
[SourceTitle "playchess.com"]
[Source "ChessBase"]
[SourceQuality "1"]
[TimeControl "40/5400+30:1800+30"]

1. d4 {[%emt 0:00:00]} Nf6 {[%emt 0:00:00]} 2. Nf3 {[%emt 0:00:00]} g6 {[%emt 0:00:00]} 3. g3 {[%emt 0:00:00]} Bg7 {[%emt 0:00:08]} 4. Bg2 {[%emt 0:00:03]} O-O {[%emt 0:00:10]} 5. O-O {[%emt 0:00:15]} d6 {[%emt 0:00:55]} 6. c4 {[%emt 0:01:43]} Nc6 {[%emt 0:00:20]} 7. b3 {[%emt 0:02:08]} Bg4 {[%emt 0:03:21]} 8. Bb2 {[%emt 0:02:28]} Qd7 {[%emt 0:00:27]} 9. Nc3 {[%emt 0:03:48]} Bh3 {[%emt 0:00:43]} 10. e4 {[%emt 0:07:04]} Bxg2 {[%emt 0:09:46]} 11. Kxg2 {[%emt 0:00:16]} Nh5 {[%emt 0:00:38]} 12. d5 {[%emt 0:04:22]} Nd8 {[%emt 0:00:42]} 13. Qd2 {[%emt 0:14:00]} e5 {[%emt 0:00:47]} 14. dxe6 {[%emt 0:04:34]} fxe6 {[%emt 0:05:06]} 15. Ng1 {[%emt 0:06:58]} e5 {[%emt 0:03:39]} 16. c5 {[%emt 0:03:24]} Ne6 {[%emt 0:05:04]} 17. cxd6 {[%emt 0:01:10]} cxd6 {[%emt 0:00:08]} 18. Nd5 {[%emt 0:02:35]} Rf7 {[%emt 0:10:02]} 19. Rac1 {[%emt 0:08:53]} Raf8 {[%emt 0:03:57]} 20. f3 {[%emt 0:01:08]} Nf6 {[%emt 0:01:27]} 21. Ne2 {[%emt 0:09:14]} Nxd5 {[%emt 0:01:18]} 22. Qxd5 {[%emt 0:02:37]} Ng5 {[%emt 0:04:40]} 23. Ng1 {[%emt 0:00:20]} h5 {[%emt 0:02:10]} 24. f4 {[%emt 0:05:27]} Ne6 {[%emt 0:04:28]} 25. fxe5 dxe5 {[%emt 0:00:52]} 26. Qxd7 {[%emt 0:03:26]} Rxd7 {[%emt 0:03:00]} 27. Rxf8+ {[%emt 0:01:16]} Nxf8 {[%emt 0:05:20]} 28. Nf3 {[%emt 0:00:44]} Ne6 {[%emt 0:02:40]} 29. Rc8+ {[%emt 0:02:36]} Kh7 {[%emt 0:00:31]} 30. Re8 {[%emt 0:03:49]} Nc7 {[%emt 0:01:05]} 31. Rb8 {[%emt 0:01:00]} Na6 {[%emt 0:02:16]} 32. Ra8 {[%emt 0:01:49]} Nc5 {[%emt 0:00:55]} 33. Ng5+ {[%emt 0:02:49]} Kh6 {[%emt 0:00:17]} 34. Bc1 {[%emt 0:00:06]} Nd3 {[%emt 0:05:15]} 35. Be3 {[%emt 0:01:56]} b6 {[%emt 0:01:06]} 36. Nf7+ {[%emt 0:00:42]} Kh7 {[%emt 0:00:07]} 37. Ng5+ {[%emt 0:00:39]} Kh6 {[%emt 0:00:16]} 38. Ne6+ {[%emt 0:01:20]} Kh7 {[%emt 0:00:20]} 39. h4 {[%emt 0:01:05]} Ne1+ {[%emt 0:04:54]} 40. Kf2 {[%emt 0:01:31]} Nc2 {[%emt 0:01:11]} 41. Ng5+ {[%emt 0:32:36]} Kh6 {[%emt 0:30:15]} 42. Re8 {[%emt 0:00:00]} Nxe3 {[%emt 0:00:00]} 43. Kxe3 {[%emt 0:00:00]} Rc7 {[%emt 0:00:00]} 44. Kd3 {[%emt 0:00:00]} Rd7+ {[%emt 0:00:00]} 45. Kc3 {[%emt 0:00:00]} Rc7+ {[%emt 0:00:00]} 46. Kd3 {[%emt 0:00:00]} Rd7+ {[%emt 0:00:00]} 47. Kc3 {[%emt 0:00:00]} Rc7+ {[%emt 0:00:00]} 48. Kd3 {[%emt 0:00:00]} 1/2-1/2